bitfinex/quotes_ETHUSD_20260214
["timestamp","ask_amount","ask_price","bid_price","bid_amount"]
[1771104300051,0.45536377,2086.9,2085.6,4.79470337]
[1771104300052,1.19800651,2086.8,2086.0,1.19846596]
[1771104300882,4.79118158,2087.2,2086.1,0.49907499]
[1771104300883,1.19782227,2087.2,2086.1,0.49907499]
[1771104301655,1.19782227,2087.2,2086.3,0.49907499]
[1771104301859,1.19775276,2087.3,2086.3,0.49907499]
[1771104302060,4.79074841,2087.4,2086.5,0.49907499]
[1771104302236,5.24611218,2087.4,2086.5,2.28807499]
[1771104302560,1.1,2087.2,2086.5,2.28807499]
[1771104304062,1.55536377,2087.2,2086.5,1.789]
[1771104304471,1.19783431,2087.1,2086.5,1.789]
[1771104304775,1.19783431,2087.1,2086.5,2.9871786]
[1771104305438,2.29778439,2087.2,2086.6,0.49907499]
[1771104306139,1.1,2087.2,2086.6,0.49907499]
[1771104306456,1.1,2087.2,2086.8,0.49907499]
[1771104306769,4.7902689,2087.6,2086.8,0.49907499]
[1771104307731,0.45536377,2087.5,2086.6,2.98508207]
[1771104308762,0.45536377,2087.0,2085.8,0.001]
[1771104308961,0.45536377,2086.8,2085.8,0.001]
[1771104310766,1.19806392,2086.7,2085.8,0.50007499]
[1771104312536,1.1,2086.5,2085.8,0.50007499]
[1771104312737,1.1,2086.5,2086.0,0.49907499]
[1771104312961,1.19812805,2086.6,2086.0,0.49907499]
[1771104313271,1.19804637,2086.8,2086.0,0.49907499]
[1771104314485,1.19804637,2086.8,2085.8,2.98253721]
[1771104314486,0.45673844,2086.7,2085.8,0.001]
[1771104314764,0.45673844,2086.5,2085.8,0.001]
[1771104317072,1.19823619,2086.4,2085.8,0.001]
[1771104317682,1.1,2086.2,2085.8,0.001]
[1771104318172,1.19822381,2086.5,2085.8,0.001]
[1771104318344,1.19814672,2086.6,2085.8,0.4944405]
[1771104318743,1.19814672,2086.6,2085.3,5.65778327]
[1771104318744,0.45673844,2086.2,2085.1,1.19898326]
[1771104318942,1.65514695,2086.1,2085.1,1.19898326]
[1771104319171,1.65514695,2086.1,2085.5,0.001]
[1771104320568,1.19840851,2086.1,2085.5,0.001]
[1771104320979,4.79363405,2086.2,2085.5,0.001]
[1771104322385,1.19835106,2086.2,2085.5,0.001]
[1771104323188,1.1,2086.0,2085.4,5.28856273]
[1771104323353,1.1,2086.0,2085.5,1.19875329]
[1771104323892,1.1,2086.0,2085.5,1.69219379]
[1771104324393,2.29847285,2086.0,2085.3,1.775]
[1771104324873,2.29847285,2086.0,2085.1,0.4934405]
[1771104325080,2.75521129,2086.0,2085.1,0.4934405]
[1771104325374,2.75521129,2086.0,2085.2,1.19892576]
[1771104328576,0.45673844,2085.9,2085.2,1.19892576]
[1771104328775,2.29847285,2086.0,2085.2,1.19892576]
[1771104329152,2.29847285,2086.0,2085.3,0.4934405]
[1771104329895,2.29847285,2086.0,2085.4,1.19881077]
[1771104330374,2.29847285,2086.0,2085.1,1.773]
[1771104330375,0.45673844,2085.9,2085.1,1.773]
[1771104330684,0.45673844,2085.9,2085.0,1.69247739]
[1771104330870,2.29847285,2086.0,2085.1,0.4934405]
[1771104331268,1.1,2086.0,2085.1,0.4934405]
[1771104332162,1.1,2086.0,2085.3,0.4934405]
[1771104332383,2.29847029,2086.0,2085.3,2.2644405]
[1771104333203,1.1,2086.0,2085.3,2.2644405]
[1771104334092,2.29847322,2086.0,2085.3,2.2644405]
[1771104334307,2.29847322,2086.0,2085.4,1.19881077]
[1771104336617,2.29847322,2086.0,2085.4,1.69225127]
[1771104336911,1.19937066,2086.4,2085.5,0.4934405]
[1771104337225,0.45673844,2086.3,2085.1,5.28918437]
[1771104337574,0.45673844,2086.3,2085.1,1.69239072]
[1771104337793,0.45673844,2086.3,2085.2,1.771]
[1771104338220,0.45673844,2086.3,2085.2,2.2644405]
[1771104338673,1.19835106,2086.2,2085.5,0.4934405]
[1771104339092,1.19833079,2086.3,2085.5,0.4934405]
[1771104339704,1.65506923,2086.3,2085.6,1.771]
[1771104340112,1.65506923,2086.3,2085.5,1.771]
[1771104340777,1.65506923,2086.3,2085.6,1.19869581]
[1771104341177,0.45262346,2086.2,2085.6,1.19869581]
[1771104342199,1.65095425,2086.3,2085.6,1.19869581]
[1771104343305,0.49884814,2086.2,2085.5,2.96872264]
[1771104344497,0.49884814,2086.2,2085.5,1.19872264]
[1771104344698,4.7941311,2086.4,2085.6,0.45879676]
[1771104344699,1.19938905,2086.4,2085.6,0.45879676]
[1771104345013,0.0011,2086.4,2085.7,1.6574351]
[1771104351003,0.0011,2086.4,2085.8,0.45879676]
[1771104354224,0.0011,2086.4,2085.9,1.19852341]
[1771104356105,0.0011,2086.4,2085.9,1.65732017]
[1771104359917,5.29253276,2086.6,2085.9,1.65732017]
[1771104359918,0.0011,2086.6,2086.0,0.45879676]
[1771104360238,0.49884814,2087.1,2086.2,0.45879676]
[1771104360533,0.49884814,2086.7,2085.7,2.86239786]
[1771104360907,0.49884814,2086.5,2085.3,1.19886826]
[1771104361148,0.49884814,2086.5,2085.4,2.22679676]
[1771104361538,0.49884814,2086.5,2085.5,1.768]
[1771104361714,1.19817876,2086.5,2085.8,0.45879676]
[1771104361922,1.6970269,2086.5,2085.8,0.45879676]
[1771104362115,1.6970269,2086.5,2085.7,1.19863834]
[1771104362433,1.6970269,2086.5,2085.7,1.6574351]
[1771104364221,0.49884814,2086.4,2085.6,1.19865943]
[1771104364537,0.49884814,2086.4,2085.6,2.96565943]
[1771104364838,0.49884814,2086.3,2085.5,1.767]
[1771104366441,1.6971992,2086.2,2085.5,1.767]
[1771104366621,1.6971992,2086.2,2085.5,2.96574395]
[1771104367244,1.6971992,2086.2,2085.5,1.767]
[1771104367718,1.6971992,2086.2,2085.4,1.1987692]
[1771104367921,1.6971992,2086.2,2085.4,2.9637692]
[1771104368418,1.6971992,2086.2,2085.4,3.42256596]
[1771104369056,1.6971992,2086.2,2085.2,0.45979676]
[1771104369057,0.49884814,2086.1,2085.2,0.45979676]
[1771104369211,0.49884814,2086.1,2085.2,1.65872037]
[1771104369415,0.49884814,2086.1,2085.3,0.45879676]
[1771104371025,1.19846596,2086.0,2085.3,1.65760903]
[1771104371226,1.19846596,2086.0,2085.4,0.45879676]
[1771104371532,1.19846596,2086.0,2085.2,0.45979676]
[1771104371533,0.49884814,2085.9,2085.2,0.45979676]
[1771104372481,0.49884814,2085.9,2085.2,1.65871533]
[1771104373080,1.19858088,2085.8,2085.2,1.65871533]
[1771104374378,1.19858088,2085.8,2085.2,3.42171533]
[1771104374992,0.48417598,2086.1,2085.3,0.49780929]
[1771104375285,1.68262955,2086.1,2085.3,0.49780929]
[1771104375490,0.48417598,2086.0,2085.3,0.49780929]
[1771104376655,0.48417598,2086.2,2085.4,0.49780929]
[1771104377160,1.68241217,2086.4,2085.4,0.49780929]
[1771104377904,0.48417598,2086.3,2085.4,0.49780929]
[1771104378576,1.19823619,2086.4,2085.6,0.49780929]
[1771104378778,1.68241217,2086.4,2085.6,0.49780929]
[1771104379179,1.68241217,2086.4,2085.6,0.46980929]
[1771104379993,0.48417598,2086.3,2085.6,1.761]
[1771104380193,0.48417598,2086.3,2085.6,2.25880929]
[1771104380490,0.48417598,2086.3,2085.4,1.76]
[1771104380802,0.48417598,2086.1,2085.2,0.001]
[1771104381880,0.48417598,2086.1,2085.2,1.69773075]
[1771104382175,0.48417598,2086.1,2085.2,1.19992146]
[1771104382376,0.48417598,2086.1,2085.2,1.69773075]
[1771104383199,1.19846596,2086.0,2085.3,0.49780929]
[1771104383978,1.68264194,2086.0,2085.3,0.49780929]
[1771104386096,0.48417598,2086.2,2085.4,1.69662006]
[1771104387976,1.68258449,2086.1,2085.4,0.49780929]
[1771104388176,0.48417598,2086.0,2085.3,0.49780929]
[1771104388500,0.48417598,2086.0,2085.2,0.49880929]
[1771104388879,0.48417598,2086.0,2085.2,0.001]
[1771104389983,0.48417598,2086.0,2085.2,1.19991744]
[1771104390185,0.48417598,2085.8,2085.2,0.001]
[1771104392010,0.48417598,2085.8,2085.2,0.49880929]
[1771104392320,1.19852341,2085.9,2085.2,0.49880929]
[1771104392538,0.48417598,2085.9,2085.2,1.69770525]
[1771104393449,5.27826965,2086.0,2085.3,0.49780929]
[1771104393739,1.68264194,2086.0,2085.3,0.49780929]
[1771104394541,1.68264194,2086.0,2085.4,1.69662006]
[1771104394703,1.19845082,2086.1,2085.4,1.69662006]
[1771104395076,1.6826268,2086.1,2085.4,1.69662006]
[1771104397863,1.19845082,2086.1,2085.5,0.49780929]
[1771104398160,0.48417598,2086.0,2085.3,0.49780929]
[1771104398338,0.48417598,2086.0,2085.2,2.25080929]
[1771104398956,0.48417598,2085.8,2085.2,0.001]
[1771104399947,0.48417598,2085.8,2085.2,1.19991496]
[1771104400142,1.19852341,2085.9,2085.2,1.69792701]
[1771104400346,0.49516744,2085.8,2085.2,1.69792701]
[1771104400657,0.49516744,2085.8,2085.2,1.19991804]
[1771104400961,1.69369085,2085.9,2085.2,1.19991804]
[1771104401145,0.49516744,2085.8,2085.2,0.001]
[1771104401980,0.49516744,2085.8,2085.1,1.64896089]
[1771104402463,1.69369085,2085.9,2085.2,0.49801205]
[1771104402965,0.49516744,2085.8,2085.0,2.25001205]
[1771104403160,1.69477536,2085.7,2085.0,3.44905246]
[1771104403673,1.69477536,2085.7,2085.0,1.69805246]
[1771104414475,1.69477536,2085.7,2085.0,3.45305246]
[1771104415376,1.69477536,2085.7,2085.0,1.69805246]
[1771104415557,0.49613702,2085.6,2085.0,1.69805246]
[1771104415749,0.49613702,2085.6,2085.0,1.20004041]
[1771104416402,1.19855048,2085.9,2085.1,0.45597439]
[1771104416554,2.86759251,2085.8,2085.1,0.45597439]
[1771104416755,1.6946875,2085.9,2085.1,0.45597439]
[1771104417011,2.86761735,2085.8,2085.1,0.45597439]
[1771104417285,1.6946875,2085.9,2085.1,0.45597439]
[1771104418199,1.6946875,2085.9,2085.2,1.19892576]
[1771104418403,1.6946875,2085.9,2085.3,0.45597439]
[1771104420165,6.44500122,2086.0,2085.3,0.45597439]
[1771104420166,3.34564593,2086.0,2085.3,0.45597439]
[1771104420366,3.34564593,2086.0,2085.4,0.45597439]
[1771104421000,1.651,2086.0,2085.4,0.45597439]
[1771104421485,1.19835773,2086.2,2085.4,2.20997439]
[1771104421706,0.863,2086.3,2085.5,0.45597439]
[1771104421859,2.06131317,2086.3,2085.5,0.45597439]
[1771104422058,2.06131317,2086.3,2085.6,1.754]
[1771104422059,0.49613702,2086.2,2085.6,1.754]
[1771104422261,1.19840851,2086.1,2085.5,1.65469892]
[1771104422461,1.19840851,2086.1,2085.5,3.40869892]
[1771104423279,1.19840851,2086.1,2085.5,1.65469892]
[1771104425002,2.06129425,2086.3,2085.6,0.45597439]
[1771104425925,0.863,2086.3,2085.6,0.45597439]
[1771104426093,2.0612962,2086.3,2085.6,0.45597439]
[1771104426424,0.863,2086.3,2085.6,0.45597439]
[1771104426879,0.863,2086.3,2085.8,0.45597439]
[1771104427213,1.19934144,2086.4,2085.8,0.45597439]
[1771104427416,0.0011,2086.4,2085.8,0.45597439]
[1771104428628,1.19916574,2086.7,2086.3,0.45597439]
[1771104428805,1.69530276,2086.7,2086.2,1.754]
[1771104428972,1.69530276,2086.7,2086.1,1.19838355]
[1771104429171,1.69530276,2086.7,2086.1,2.95238355]
[1771104429405,0.0011,2086.7,2086.1,3.40835794]
[1771104429704,0.0011,2086.7,2086.2,0.45597439]
[1771104430998,0.0011,2086.7,2086.3,1.19829362]
[1771104431490,0.0011,2086.7,2086.4,0.45597439]
[1771104433529,0.0011,2086.7,2086.4,1.65420801]
[1771104433827,0.0011,2086.7,2086.3,1.19825488]
[1771104434001,0.0011,2086.7,2085.4,4.79507401]
[1771104434203,6.43688898,2086.3,2085.2,5.26432993]
[1771104434408,6.43688898,2086.3,2085.3,2.22473249]
[1771104434726,6.43688898,2086.5,2085.4,0.46873249]
[1771104435034,1.19835106,2086.2,2085.4,1.756]
[1771104435831,1.69531925,2086.3,2085.4,2.22473249]
[1771104436515,1.19832706,2086.3,2085.5,0.46873249]
[1771104437027,0.49699219,2086.4,2085.5,0.46873249]
[1771104437231,0.49699219,2086.4,2085.6,1.6674283]
[1771104439242,1.19829362,2086.3,2085.6,1.6674283]
[1771104440040,1.69527213,2086.4,2085.6,1.6674283]
[1771104441241,1.69621353,2086.6,2085.8,6.43688898]
[1771104441445,0.49699219,2086.5,2085.8,0.46873249]
[1771104442315,0.0011,2086.6,2085.8,0.46873249]
[1771104443226,0.0011,2086.6,2085.9,3.4202559]
[1771104443629,0.0011,2086.6,2086.0,0.46873249]
[1771104446446,0.0011,2086.6,2086.1,1.667141]
[1771104446748,0.0011,2086.6,2086.2,0.46873249]
[1771104447826,0.0011,2086.6,2086.2,1.754]
[1771104448921,0.0011,2086.6,2086.1,2.95340851]
[1771104450721,0.49809219,2086.6,2085.9,1.19849407]
[1771104450924,1.69626639,2086.6,2085.9,3.42222656]
[1771104451467,0.49699219,2086.5,2085.9,2.95349407]
[1771104451928,0.0011,2086.6,2086.0,0.46873249]
[1771104453058,0.0011,2086.6,2086.1,1.19840851]
[1771104453248,0.0011,2086.6,2086.2,0.46873249]
[1771104456160,0.0011,2086.6,2086.3,2.95729362]
[1771104456738,0.0011,2086.6,2086.3,3.42602611]
[1771104457457,0.0011,2086.6,2086.3,2.95729362]
[1771104460666,0.0011,2086.6,2086.3,3.44976279]
[1771104461361,0.0011,2086.6,2086.4,0.49246917]
[1771104463080,0.0011,2086.6,2086.5,1.19817876]
[1771104467076,0.0011,2086.6,2086.4,1.777]
[1771104467466,0.0011,2086.6,2086.4,1.778]
[1771104470779,0.0011,2086.6,2086.3,1.19828748]
[1771104470982,0.0011,2086.6,2086.3,3.43819128]
[1771104474284,0.0011,2086.7,2086.3,3.43819128]
[1771104475389,0.0011,2086.8,2086.4,0.4579038]
[1771104475764,0.0011,2086.8,2086.4,1.65609526]
[1771104475981,0.0011,2086.8,2086.4,1.19819146]
[1771104476865,0.47931985,2086.8,2086.5,1.793]
[1771104479472,0.0011,2086.8,2086.5,2.99117491]
[1771104480294,0.0011,2086.9,2086.5,2.99117491]
[1771104480882,0.47931985,2086.9,2086.3,1.19824338]
[1771104481085,0.47931985,2086.9,2086.4,1.795]
[1771104482794,1.67727904,2086.9,2086.4,2.99322649]
[1771104483787,1.67727904,2086.9,2086.1,1.19838591]
[1771104483788,0.47821985,2086.8,2086.1,1.19838591]
[1771104483990,0.47821985,2086.8,2086.2,1.796]
[1771104486196,0.47821985,2086.6,2086.1,1.19838591]
[1771104486494,0.47821985,2086.6,2086.1,2.99338591]
[1771104486694,1.57821985,2086.6,2086.1,2.99338591]
[1771104487968,1.57821985,2086.6,2086.1,1.796]
[1771104490072,1.57821985,2086.6,2086.2,1.19835106]
[1771104490701,1.1,2086.6,2086.2,1.19835106]
[1771104490900,0.47821985,2086.7,2086.2,1.19835106]
[1771104491101,1.19804425,2086.8,2086.2,1.65625486]
[1771104491603,1.6762641,2086.8,2086.2,1.65625486]
[1771104492499,1.67731021,2086.9,2086.3,0.4579038]
[1771104493283,1.67731021,2086.9,2086.0,4.79483864]
[1771104493284,0.49850033,2086.7,2086.0,1.19946408]
[1771104493999,0.49850033,2086.7,2086.1,0.49866299]
[1771104494889,1.19812134,2086.6,2086.0,1.19946408]
[1771104495499,1.69660214,2086.7,2086.1,0.49866299]
[1771104495680,1.69656526,2086.7,2086.1,0.49866299]
[1771104496817,1.1,2086.5,2086.1,0.49866299]
[1771104497118,1.1,2086.5,2086.1,1.69701838]
[1771104498105,1.1,2086.5,2086.2,0.49866299]
[1771104499210,1.1,2086.5,2086.0,5.2934063]
[1771104500382,1.1,2086.5,2086.0,4.79474331]
[1771104500586,1.1,2086.5,2086.0,0.49966299]
[1771104500587,2.2981893,2086.5,2086.0,0.49966299]
[1771104500799,1.1,2086.5,2086.0,0.49966299]
[1771104500998,2.29818597,2086.5,2086.0,0.49966299]
[1771104501513,2.7966863,2086.5,2086.0,0.001]
[1771104501709,0.49850033,2086.4,2086.0,0.001]
[1771104502285,0.49850033,2086.4,2086.0,1.19946438]
[1771104503310,0.49850033,2086.4,2086.0,0.001]
[1771104505989,1.69673742,2086.4,2086.0,0.001]
[1771104506303,2.29822125,2086.5,2086.0,0.001]
[1771104506813,1.59850033,2086.5,2086.0,0.001]
[1771104507024,2.79668783,2086.5,2086.0,0.001]
[1771104510409,1.1,2086.5,2086.0,0.49966299]
[1771104510613,2.29818474,2086.5,2086.0,0.49966299]
[1771104510790,2.29818474,2086.5,2086.0,0.001]
[1771104510990,2.79668507,2086.5,2086.0,0.001]
[1771104512093,0.49850033,2086.4,2086.0,0.001]
[1771104512515,1.69677218,2086.4,2086.0,0.001]
[1771104512725,0.49850033,2086.4,2086.0,0.001]
[1771104513021,2.29821243,2086.5,2086.0,0.001]
[1771104515896,2.79671276,2086.5,2086.0,0.001]
[1771104516519,1.69671276,2086.5,2086.0,0.001]
[1771104518226,1.1,2086.3,2086.0,0.001]
[1771104519619,1.1,2086.3,2086.0,0.49966299]
[1771104520904,1.1,2086.3,2086.0,1.69810923]
[1771104522616,1.1,2086.3,2086.0,1.19944624]
[1771104524528,1.1,2086.3,2086.0,0.001]
[1771104527327,1.68973389,2086.5,2086.0,0.001]
[1771104528226,0.49154953,2086.4,2086.0,0.001]
[1771104530016,0.49154953,2086.2,2086.0,0.001]
[1771104530607,1.19829362,2086.3,2086.0,0.001]
[1771104532033,1.68982999,2086.4,2086.0,0.001]
[1771104534749,1.19812134,2086.6,2086.0,0.45774233]
[1771104535046,1.68967087,2086.6,2086.0,0.45774233]
[1771104535208,0.49154953,2086.5,2086.0,0.001]
[1771104537640,1.68977227,2086.5,2086.0,0.001]
[1771104538521,1.19822274,2086.5,2086.0,0.001]
[1771104538722,1.19822274,2086.5,2086.0,0.45774233]
[1771104540141,5.28412129,2086.6,2086.0,0.45774233]
[1771104540335,5.28412129,2086.6,2086.0,1.65620808]
[1771104540734,0.0011,2086.9,2086.1,0.45674233]
[1771104540932,5.28358894,2086.8,2086.1,0.45674233]
[1771104541828,0.49154953,2086.7,2086.0,0.001]
[1771104542035,0.49154953,2086.7,2086.0,1.798]
[1771104542239,0.49154953,2086.5,2086.0,1.798]
[1771104544140,0.49154953,2086.5,2086.0,0.001]
[1771104544349,1.19823619,2086.4,2086.0,0.001]
[1771104545861,1.68978572,2086.4,2086.0,0.001]
[1771104546064,1.19823619,2086.4,2086.0,0.001]
[1771104546554,4.79272147,2086.5,2086.0,0.001]
[1771104546932,1.19817876,2086.5,2086.0,0.45774233]
[1771104549475,0.49154953,2086.4,2086.0,0.001]
[1771104549759,1.59154953,2086.3,2086.0,0.001]
[1771104550369,1.1,2086.3,2086.0,0.001]
[1771104552352,2.29831759,2086.3,2086.0,0.001]
[1771104553247,2.7661646,2086.3,2086.0,0.001]
[1771104553847,0.46784701,2086.2,2086.0,0.001]
[1771104554269,1.19840851,2086.1,2085.8,0.001]
[1771104561686,0.46784701,2086.0,2085.8,0.001]
[1771104562098,0.46784701,2086.0,2085.6,0.001]
[1771104562471,1.66637042,2085.9,2085.6,0.001]
[1771104563963,8.0939024,2086.2,2085.6,0.001]
[1771104563964,1.1984394,2086.1,2085.6,0.4896611]
[1771104564379,1.66628641,2086.1,2085.6,0.001]
[1771104565797,0.46784701,2086.0,2085.6,0.001]
[1771104567193,1.19852341,2085.9,2085.6,0.001]
[1771104567697,1.66637042,2085.9,2085.6,0.001]
[1771104568109,0.46784701,2086.1,2085.6,0.001]
[1771104568275,1.66629162,2086.1,2085.6,0.001]
[1771104568679,0.46784701,2086.0,2085.6,0.001]
[1771104569875,1.19844461,2086.1,2085.6,0.001]
[1771104571103,1.66629162,2086.1,2085.6,0.001]
[1771104571400,0.46784701,2086.0,2085.6,0.001]
[1771104572113,1.19844461,2086.1,2085.6,0.001]
[1771104572602,1.66629162,2086.1,2085.6,0.001]
[1771104572772,1.19844461,2086.1,2085.6,0.001]
[1771104572969,1.19844461,2086.1,2085.6,0.4896611]
[1771104573991,1.19844461,2086.1,2085.6,0.001]
[1771104574185,1.66629162,2086.1,2085.6,0.001]
[1771104581195,0.4547893,2086.0,2085.6,0.001]
[1771104582081,1.19844461,2086.1,2085.6,0.001]
[1771104583311,1.67774105,2086.1,2085.6,0.001]
[1771104585707,0.47929644,2086.0,2085.6,0.001]
[1771104587123,1.19844461,2086.1,2085.6,0.001]
[1771104587793,1.67774105,2086.1,2085.6,0.001]
[1771104587995,0.47929644,2086.0,2085.6,0.001]
[1771104590421,1.19852341,2085.9,2085.6,0.001]
[1771104592723,4.79398437,2086.0,2085.6,0.001]
[1771104593308,1.1,2085.8,2085.6,0.001]
[1771104597709,1.1,2085.8,2085.6,0.47827872]
[1771104602028,1.19840851,2086.1,2085.6,0.001]
[1771104602210,3.32968497,2086.2,2085.6,0.001]
[1771104602534,1.67874463,2086.3,2085.7,0.47727872]
[1771104604636,1.19944819,2086.3,2085.7,1.67590839]
[1771104604837,1.19944819,2086.3,2085.8,0.47727872]
[1771104605736,1.19944819,2086.3,2085.6,0.47827872]
[1771104605936,0.47929644,2086.2,2085.6,0.001]
[1771104606735,1.19840851,2086.1,2085.6,0.001]
[1771104607910,1.19943478,2086.3,2085.6,0.47827872]
[1771104608749,1.1,2086.1,2085.6,0.47827872]
[1771104609439,1.1,2086.1,2085.6,1.67692644]
[1771104609647,1.1,2086.1,2085.7,0.47727872]
[1771104611646,1.1,2086.1,2085.9,0.47727872]
[1771104611937,0.0011,2086.3,2085.7,4.79449317]
[1771104611938,1.19940084,2086.3,2085.7,0.47727872]
[1771104612530,1.67869728,2086.3,2085.7,0.47727872]
[1771104613742,1.1,2086.1,2085.7,0.47727872]
[1771104614342,1.1,2086.1,2085.7,1.67591408]
[1771104614546,1.1,2086.1,2085.7,0.47727872]
[1771104614940,1.1,2086.1,2085.6,0.001]
[1771104615147,1.1,2086.1,2085.6,1.69245603]
[1771104615649,2.29845069,2086.1,2085.6,0.49376348]
[1771104615939,2.29845069,2086.1,2085.6,1.6924583]
[1771104617349,2.29845069,2086.1,2085.6,0.49376348]
[1771104618038,2.29845069,2086.1,2085.6,1.69245217]
[1771104618349,2.29845069,2086.1,2085.7,0.49276348]
[1771104618523,1.1,2086.1,2085.7,0.49276348]
[1771104620252,2.2984107,2086.1,2085.7,0.49276348]
[1771104620753,1.1,2086.1,2085.7,0.49276348]
[1771104620960,1.1,2086.1,2085.7,1.69139712]
[1771104621254,1.1,2086.1,2085.7,0.49276348]
[1771104624737,1.1,2086.1,2085.6,2.97365031]
[1771104625141,2.29841592,2086.1,2085.6,2.97365031]
[1771104625341,2.29841592,2086.1,2085.6,1.775]
[1771104625549,2.29841592,2086.1,2085.6,2.26776348]
[1771104626245,2.29841592,2086.1,2085.6,3.46645121]
[1771104627164,2.78286441,2086.1,2085.6,1.775]
[1771104628031,2.78286441,2086.1,2085.6,0.001]
[1771104631840,0.48444849,2086.0,2085.6,0.001]
[1771104632365,1.6829719,2085.9,2085.6,0.001]
[1771104633278,1.19852341,2085.9,2085.6,0.001]
[1771104636189,1.6829719,2085.9,2085.6,0.001]
[1771104639384,1.19852341,2085.9,2085.6,0.001]
[1771104640658,5.26795214,2086.0,2085.6,0.001]
[1771104642686,1.19846596,2086.0,2085.6,0.47897697]
[1771104642989,1.19846596,2086.0,2085.6,0.001]
[1771104643989,1.68544527,2086.0,2085.6,0.001]
[1771104644292,0.48697931,2085.9,2085.6,0.001]
[1771104644492,1.68544527,2086.0,2085.6,0.001]
[1771104645975,0.48697931,2085.9,2085.6,0.001]
[1771104647091,0.48697931,2085.9,2085.5,0.001]
[1771104647789,1.68556019,2085.8,2085.5,0.001]
[1771104648293,0.48697931,2085.7,2085.5,0.001]
[1771104649069,0.48697931,2085.7,2085.2,0.001]
[1771104649479,0.48697931,2085.7,2085.3,0.001]
[1771104649882,1.68567512,2085.6,2085.3,0.001]
[1771104650495,1.68567512,2085.6,2085.2,0.001]
[1771104650699,0.48697931,2085.4,2084.9,0.001]
[1771104650885,0.48697931,2085.2,2084.8,0.001]
[1771104651090,0.48697931,2085.1,2084.8,0.001]
[1771104651880,1.19904076,2085.0,2084.8,0.001]
[1771104653902,4.79607131,2085.1,2084.8,0.001]
[1771104654294,5.28305062,2085.1,2084.8,0.001]
[1771104656903,1.1,2084.9,2084.8,0.001]
[1771104657072,1.1,2084.9,2084.8,0.45869547]
[1771104657277,2.91895335,2085.2,2084.8,0.001]
[1771104657480,1.19895335,2085.2,2084.8,0.001]
[1771104658108,1.68593266,2085.2,2084.8,0.001]
[1771104661486,1.19895335,2085.2,2084.8,0.001]
[1771104661903,1.1,2085.0,2084.8,0.45869547]
[1771104663918,1.727,2085.3,2084.9,0.45769547]
[1771104664122,1.19877879,2085.5,2084.9,0.45769547]
[1771104665213,1.19877879,2085.5,2085.1,0.45769547]
[1771104665901,1.735,2085.6,2085.1,0.45769547]
[1771104666107,2.93369973,2085.6,2085.1,0.45769547]
[1771104666621,1.735,2085.6,2085.1,0.45769547]
[1771104667016,2.9336968,2085.6,2085.1,0.45769547]
[1771104667319,1.735,2085.6,2085.2,0.45769547]
[1771104667928,1.1,2085.4,2085.2,0.45769547]
[1771104669010,2.06162868,2085.8,2085.2,0.45769547]
[1771104669307,0.863,2085.8,2085.4,0.45769547]
[1771104670595,2.06158557,2085.8,2085.4,0.45769547]
[1771104670798,2.06158557,2085.8,2085.2,1.65657899]
[1771104671011,2.06158557,2085.8,2085.3,0.45769547]
[1771104673012,1.1,2085.6,2085.3,0.45769547]
[1771104674903,2.29869636,2085.6,2085.1,1.19895254]
[1771104675114,2.29869636,2085.6,2085.1,1.68738388]
[1771104676104,2.29869636,2085.6,2085.1,0.48843134]
[1771104676667,1.1,2085.6,2085.1,1.68741074]
[1771104676821,1.1,2085.6,2085.1,1.1989794]
[1771104677010,1.1,2085.6,2085.2,0.48843134]
[1771104679015,1.1,2085.6,2085.3,0.48843134]
[1771104684721,1.1,2085.6,2085.3,1.6872948]
[1771104686669,1.19862669,2085.8,2085.3,0.48843134]
[1771104687459,1.68059493,2085.8,2085.1,1.68737449]
[1771104688144,1.68059493,2085.8,2085.2,0.48843134]
[1771104689383,0.0011,2085.9,2085.3,0.48843134]
[1771104689552,2.85941435,2085.8,2085.3,0.48843134]
[1771104689747,1.68159165,2085.9,2085.3,0.48843134]
[1771104690077,2.85942993,2085.8,2085.3,0.48843134]
[1771104690267,1.68159165,2085.9,2085.3,0.48843134]
[1771104690457,2.85952614,2085.8,2085.3,0.48843134]
[1771104690645,1.68159165,2085.9,2085.3,0.48843134]
[1771104690851,2.85962384,2085.8,2085.3,0.48843134]
[1771104691175,1.68159165,2085.9,2085.3,0.48843134]
[1771104691477,2.85959044,2085.8,2085.3,0.48843134]
[1771104691696,1.68159165,2085.9,2085.3,1.68729776]
[1771104691878,2.86058721,2085.8,2085.3,1.68729776]
[1771104692080,1.68159165,2085.9,2085.3,1.68729776]
[1771104692379,2.86057761,2085.8,2085.4,0.48843134]
[1771104692682,1.68159165,2085.9,2085.3,0.48843134]
[1771104692868,2.86182643,2085.8,2085.3,0.48843134]
[1771104693070,1.68159165,2085.9,2085.3,0.48843134]
[1771104693264,2.86181858,2085.8,2085.3,0.48843134]
[1771104693470,1.68159165,2085.9,2085.3,0.48843134]
[1771104693767,2.86314246,2085.8,2085.3,0.48843134]
[1771104693969,1.68159165,2085.9,2085.3,0.48843134]
[1771104694170,2.86313566,2085.8,2085.3,0.48843134]
[1771104694369,1.68159165,2085.9,2085.3,0.48843134]
[1771104694574,2.86378082,2085.8,2085.3,0.48843134]
[1771104694769,1.68159165,2085.9,2085.3,0.48843134]
[1771104694968,2.86376907,2085.8,2085.3,0.48843134]
[1771104695284,1.68159165,2085.9,2085.3,0.48843134]
[1771104695483,2.86439852,2085.8,2085.3,0.48843134]
[1771104695688,1.68159165,2085.9,2085.3,0.48843134]
[1771104695889,2.8643703,2085.8,2085.3,0.48843134]
[1771104696054,1.68159165,2085.9,2085.3,1.68729812]
[1771104696388,2.86437099,2085.8,2085.3,1.68729812]
[1771104696572,1.68159165,2085.9,2085.3,1.68729812]
[1771104696776,1.1,2085.7,2085.3,1.68729812]
[1771104697789,0.48196824,2085.6,2085.0,1.758]
[1771104697980,0.48196824,2085.6,2084.8,0.001]
[1771104697981,0.48196824,2085.5,2084.8,0.001]
[1771104698287,0.48196824,2085.3,2084.8,0.001]
[1771104698867,7.64239041,2085.4,2084.6,0.001]
[1771104698868,6.44357964,2085.0,2084.6,0.001]
[1771104699063,0.48196824,2084.9,2083.9,1.33405678]
[1771104699394,0.48196824,2084.7,2083.9,2.53372981]
[1771104699588,0.48196824,2084.6,2083.9,2.53372981]
[1771104699791,0.48196824,2084.6,2084.0,1.66702197]
[1771104699995,0.48196824,2084.6,2084.4,0.001]